bitfinex-derivatives/quotes_ETHF0:USTF0_20240913
["timestamp","ask_amount","ask_price","bid_price","bid_amount"]
[1726218269453,6.41309023,2344.4,2344.3,0.80274]
[1726218270359,3.63432,2344.4,2344.3,0.80274]
[1726218272553,0.42652,2344.4,2344.3,0.80274]
[1726218272755,3.63432,2344.4,2344.3,0.80274]
[1726218275351,3.2078,2344.4,2344.3,0.80274]
[1726218276361,3.63432,2344.4,2344.3,0.80274]
[1726218276858,3.2078,2344.4,2344.3,0.80274]
[1726218277058,3.63432,2344.4,2344.3,0.80274]
[1726218277458,6.41186262,2344.4,2344.3,0.80274]
[1726218282559,3.63432,2344.4,2344.3,0.80274]
[1726218284963,0.42652,2344.4,2344.3,0.80274]
[1726218285165,3.63432,2344.4,2344.3,1.8691]
[1726218285456,3.63432,2344.4,2344.3,0.80274]
[1726218291358,3.2078,2344.4,2344.3,0.80274]
[1726218292166,3.2078,2344.4,2344.3,1.20374]
[1726218293569,7.66412598,2344.4,2344.3,1.20374]
[1726218294369,7.66412598,2344.4,2344.3,2.2701]
[1726218294671,7.66412598,2344.4,2344.3,1.20374]
[1726218296575,7.66412598,2344.4,2344.3,2.2701]
[1726218296971,4.45632598,2344.4,2344.3,2.2701]
[1726218297170,7.66412598,2344.4,2344.3,2.2701]
[1726218299770,7.66412598,2344.4,2344.3,1.20374]
[1726218300571,3.2078,2344.4,2344.3,1.20374]
[1726218303279,3.2078,2344.4,2344.3,2.2701]
[1726218303783,3.2078,2344.4,2344.3,1.20374]
[1726218304975,4.29777255,2344.5,2344.4,0.42652]
[1726218306380,4.72427255,2344.5,2344.4,0.42652]
[1726218307378,0.8209,2344.5,2344.4,0.42652]
[1726218307880,0.3944,2344.5,2344.4,0.42652]
[1726218310488,0.8209,2344.5,2344.4,0.42652]
[1726218313486,3.2078,2344.6,2344.5,1.49277]
[1726218313884,3.2078,2344.6,2344.5,3.02277]
[1726218314985,5.26602598,2344.7,2344.6,0.42649]
[1726218315186,0.8097,2344.7,2344.6,0.42649]
[1726218315386,10.04936398,2344.7,2344.6,0.81299]
[1726218318892,10.47583398,2344.7,2344.6,0.81299]
[1726218319090,10.04936398,2344.7,2344.6,0.81299]
[1726218320587,5.45494256,2344.7,2344.6,0.81299]
[1726218322093,5.45494256,2344.7,2344.6,0.42649]
[1726218322579,10.47583398,2344.7,2344.6,0.42649]
[1726218330302,1.23617,2344.7,2344.6,0.42649]
[1726218334200,5.13488984,2344.7,2344.6,0.42649]
[1726218335810,4.15175141,2344.7,2344.6,1.49271]
[1726218336104,4.15175141,2344.7,2344.6,0.42649]
[1726218336706,0.8097,2344.7,2344.6,0.42649]
[1726218336906,4.15175141,2344.7,2344.6,0.42649]
[1726218337504,4.57822141,2344.7,2344.6,0.42649]
[1726218337807,0.42653,2344.4,2344.3,0.42653]
[1726218338108,5.68175141,2344.7,2344.4,0.42652]
[1726218338109,0.4265,2344.5,2344.4,0.42652]
[1726218338307,0.42653,2344.4,2344.3,0.42653]
[1726218338497,0.4105,2344.4,2344.3,0.42653]
[1726218338696,0.4105,2344.4,2344.2,1.9057]
[1726218338697,0.83702,2344.4,2344.2,2.33224]
[1726218338899,0.3774,2344.3,2344.2,0.80226]
[1726218339500,0.4105,2344.4,2344.3,0.42654]
[1726218339704,0.4105,2344.4,2344.3,1.95654]
[1726218343304,0.4105,2344.4,2344.3,2.33814]
[1726218345714,4.30921984,2344.4,2344.3,2.33814]
[1726218350522,3.89871984,2344.5,2344.4,0.42652]
[1726218350726,3.34426481,2344.6,2344.4,5.33191]
[1726218351037,3.34426481,2344.6,2344.5,2.741]
[1726218351233,3.77073481,2344.7,2344.6,0.42649]
[1726218351435,3.77073481,2344.7,2344.5,2.3145]
[1726218351436,8.31186984,2344.8,2344.7,0.42647]
[1726218351729,6.94271588,2344.8,2344.7,1.95647]
[1726218351933,6.55181588,2344.8,2344.7,1.95647]
[1726218352233,3.2078,2344.8,2344.7,1.95647]
[1726218352931,3.34401588,2344.9,2344.8,0.42645]
[1726218353232,3.73741588,2345.0,2344.9,0.42643]
[1726218353428,0.3934,2345.0,2344.9,1.95643]
[1726218360435,3.73741588,2345.0,2344.9,1.95643]
[1726218361529,3.73741588,2345.0,2344.9,0.42643]
[1726218361530,4.16382588,2345.0,2344.9,0.42643]
[1726218361838,0.42643,2344.9,2344.8,1.53]
[1726218362042,4.73544984,2344.9,2344.8,1.53]
[1726218362341,4.73544984,2344.9,2344.8,1.95643]
[1726218363139,0.83673,2344.9,2344.8,1.95643]
[1726218364242,0.83673,2344.9,2344.8,0.42643]
[1726218364433,7.94324984,2344.9,2344.8,0.42643]
[1726218364634,0.42645,2344.8,2344.7,1.95645]
[1726218365443,4.32516984,2344.8,2344.7,0.42645]
[1726218366737,0.42645,2344.8,2344.7,0.42645]
[1726218370144,3.6181,2344.9,2344.8,0.42645]
[1726218370145,0.42644,2344.9,2344.8,0.42645]
[1726218370642,0.81983,2345.0,2344.9,0.42643]
[1726218370841,0.81983,2345.0,2344.9,1.95643]
[1726218371344,0.81983,2345.0,2344.9,2.36683]
[1726218373435,0.81983,2345.0,2344.9,0.83683]
[1726218374538,0.81983,2345.0,2344.9,0.42643]
[1726218378245,3.33639461,2345.1,2345.0,1.49245]
[1726218378446,3.2078,2345.2,2345.1,1.49238]
[1726218378747,6.41634686,2345.2,2345.1,1.95639]
[1726218378950,5.98996686,2345.2,2345.1,2.36169]
[1726218379343,6.41634686,2345.2,2345.1,2.36169]
[1726218379544,5.98996686,2345.2,2345.1,3.42768]
[1726218381352,3.2078,2345.2,2345.1,3.42768]
[1726218381854,3.2078,2345.2,2345.1,4.49367]
[1726218382250,5.43234441,2345.2,2345.1,4.49367]
[1726218382449,3.2078,2345.2,2345.1,4.49367]
[1726218385256,3.2078,2345.2,2345.1,8.75767]
[1726218387150,4.16312461,2345.5,2345.4,0.42634]
[1726218387151,4.16311461,2345.5,2345.4,0.42634]
[1726218387453,7.37091461,2345.5,2345.4,1.95634]
[1726218388144,7.37091461,2345.5,2345.4,2.32974]
[1726218390653,4.03452,2345.5,2345.4,2.32974]
[1726218391152,0.82672,2345.5,2345.4,2.32974]
[1726218393755,3.60612176,2345.5,2345.4,2.32974]
[1726218394354,0.4004,2345.5,2345.4,2.32974]
[1726218394650,3.17986145,2345.5,2345.4,2.32974]
[1726218395250,0.4004,2345.5,2345.4,2.32974]
[1726218395450,0.82672,2345.5,2345.4,2.32974]
[1726218397559,4.29911984,2345.5,2345.4,2.32974]
[1726218397765,0.82672,2345.5,2345.4,2.32974]
[1726218401461,3.73596761,2345.5,2345.4,2.32974]
[1726218403055,3.73596761,2345.5,2345.4,3.3956]
[1726218403359,3.33556761,2345.6,2345.5,0.42632]
[1726218403552,3.70846761,2345.8,2345.7,0.42629]
[1726218403752,3.70846761,2345.8,2345.7,1.95629]
[1726218403954,3.70846761,2345.8,2345.7,2.77679]
[1726218405761,0.3729,2345.8,2345.7,2.77679]
[1726218405962,2.59591188,2345.8,2345.7,2.77679]
[1726218406263,2.59561603,2345.8,2345.7,2.77679]
[1726218412671,0.3729,2345.8,2345.7,2.77679]
[1726218421376,3.15337492,2345.8,2345.7,2.77679]
[1726218422467,2.78047492,2345.8,2345.7,4.90823]
[1726218422673,5.98827492,2346.0,2345.9,1.49188]
[1726218422864,5.98827492,2346.0,2345.9,3.02188]
[1726218423267,5.43395056,2346.0,2345.9,3.02188]
[1726218425981,3.2078,2346.0,2345.9,3.02188]
[1726218426483,3.2078,2346.0,2345.9,7.28428]
[1726218426781,4.8772033,2346.0,2345.9,7.28428]
[1726218427177,3.2078,2346.0,2345.9,7.28428]
[1726218427681,4.87692837,2346.0,2345.9,7.28428]
[1726218429278,1.66912837,2346.0,2345.9,7.28428]
[1726218430171,1.66912837,2346.1,2346.0,0.42623]
[1726218430481,1.66912837,2346.1,2346.0,1.95623]
[1726218430677,1.66912837,2346.1,2346.0,7.28422]
[1726218431182,1.66912837,2346.1,2346.0,7.68882]
[1726218432673,1.66912837,2346.1,2346.0,6.62323]
[1726218432875,2.61285056,2346.1,2346.0,1.95623]
[1726218433074,2.98735056,2346.1,2346.0,1.95623]
[1726218433875,2.98735056,2346.1,2346.0,6.21863]
[1726218433876,0.3867,2346.1,2346.0,6.21863]
[1726218434187,2.05515807,2346.1,2346.0,6.21863]
[1726218434687,2.05515807,2346.1,2346.0,7.28422]
[1726218435083,2.05515807,2346.1,2346.0,6.21863]
[1726218435883,3.16717492,2346.1,2346.0,6.21863]
[1726218437989,3.16717492,2346.1,2346.0,1.95623]
[1726218440599,0.3867,2346.1,2346.0,0.42623]
[1726218440799,0.3867,2346.1,2346.0,1.95623]
[1726218441590,0.3867,2346.1,2346.0,3.02182]
[1726218442405,3.16801909,2346.1,2346.0,3.02182]
[1726218443105,2.61177555,2346.1,2346.0,3.02182]
[1726218447311,0.3867,2346.1,2346.0,3.02182]
[1726218447508,2.61338126,2346.1,2346.0,1.95623]
[1726218447902,0.3867,2346.1,2346.0,1.95623]
[1726218449709,0.3867,2346.1,2346.0,2.35443]
[1726218451812,3.76176761,2346.2,2346.1,0.42621]
[1726218453623,4.53566761,2346.2,2346.1,0.42621]
[1726218453914,1.2001,2346.2,2346.1,0.42621]
[1726218455305,4.54102225,2346.2,2346.1,0.42621]
[1726218457312,1.2001,2346.2,2346.1,0.42621]
[1726218457609,4.54145922,2346.2,2346.1,0.42621]
[1726218458115,1.2001,2346.2,2346.1,0.42621]
[1726218463428,0.3937,2346.2,2346.1,1.49175]
[1726218463818,4.04149,2346.3,2346.2,0.42619]
[1726218464724,4.04149,2346.3,2346.2,1.95619]
[1726218464919,3.6153,2346.3,2346.2,3.02168]
[1726218465530,4.04148,2346.3,2346.2,3.02168]
[1726218466228,3.6153,2346.3,2346.2,3.02168]
[1726218467131,4.04148,2346.3,2346.2,3.02168]
[1726218467733,3.6153,2346.3,2346.2,3.02168]
[1726218467924,4.04148,2346.3,2346.2,3.02168]
[1726218468123,3.6153,2346.3,2346.2,3.02168]
[1726218468625,6.95665922,2346.3,2346.2,3.02168]
[1726218469832,3.6153,2346.3,2346.2,3.02168]
[1726218470327,3.6153,2346.3,2346.2,3.41588]
[1726218470730,3.2078,2346.3,2346.2,4.48137]
[1726218471031,3.34135922,2346.4,2346.3,1.49163]
[1726218471230,1.21445,2346.5,2346.4,0.42616]
[1726218471433,4.13590919,2346.5,2346.4,0.42616]
[1726218474931,4.13590919,2346.5,2346.4,1.49156]
[1726218475738,4.13590919,2346.5,2346.4,0.42616]
[1726218475939,4.56204919,2346.5,2346.4,0.42616]
[1726218476634,4.13590919,2346.5,2346.4,0.42616]
[1726218477832,4.56204919,2346.5,2346.4,0.42616]
[1726218482741,5.20126919,2346.5,2346.0,1.06556]
[1726218483046,3.2078,2346.3,2346.2,0.42617]
[1726218483233,3.2078,2346.3,2346.2,1.95617]
[1726218483839,4.13590919,2346.5,2346.2,3.02166]
[1726218484040,6.55540919,2346.6,2346.5,0.42614]
[1726218484251,3.2078,2346.6,2346.5,0.42614]
[1726218484543,3.2078,2346.6,2346.5,0.82444]
[1726218484937,3.63392,2346.6,2346.5,0.82444]
[1726218485745,3.2078,2346.6,2346.5,0.82444]
[1726218486236,3.63392,2346.6,2346.5,0.82444]
[1726218486448,0.42612,2346.6,2346.5,0.82444]
[1726218486747,3.63392,2346.6,2346.5,0.82444]
[1726218487243,0.42612,2346.6,2346.5,0.82444]
[1726218487546,3.63392,2346.6,2346.5,0.82444]
[1726218488554,0.42612,2346.6,2346.5,0.82444]
[1726218488839,3.63392,2346.6,2346.5,0.82444]
[1726218490547,3.2078,2346.6,2346.5,0.82444]
[1726218490748,3.63392,2346.6,2346.5,0.82444]
[1726218491446,0.42612,2346.6,2346.5,0.82444]
[1726218491744,3.63392,2346.6,2346.5,0.82444]
[1726218493750,0.42612,2346.6,2346.5,0.82444]
[1726218493937,3.63392,2346.6,2346.5,0.82444]
[1726218494535,0.42612,2346.6,2346.5,0.82444]
[1726218494748,3.63392,2346.6,2346.5,0.82444]
[1726218495942,4.00752,2346.6,2346.5,0.82444]
[1726218499548,0.79972,2346.6,2346.5,0.82444]
[1726218499746,4.00752,2346.6,2346.5,0.82444]
[1726218500145,0.79972,2346.6,2346.5,0.82444]
[1726218500345,4.00752,2346.6,2346.5,0.82444]
[1726218501748,0.79972,2346.6,2346.5,0.82444]
[1726218502262,5.07283,2346.6,2346.5,0.82444]
[1726218503256,8.42043919,2346.6,2346.5,0.82444]
[1726218505257,5.21263919,2346.6,2346.5,0.82444]
[1726218505556,8.42043919,2346.6,2346.5,0.82444]
[1726218507349,5.07283,2346.6,2346.5,0.82444]
[1726218510152,8.42011551,2346.6,2346.5,0.82444]
[1726218517863,5.07283,2346.6,2346.5,0.82444]
[1726218518062,6.98215022,2346.6,2346.5,0.82444]
[1726218519067,3.77435022,2346.6,2346.5,0.82444]
[1726218519373,6.98215022,2346.6,2346.5,0.82444]
[1726218522770,21.88521,2346.7,2346.6,1.49143]
[1726218523069,21.88521,2346.7,2346.6,2.95024]
[1726218524579,21.88521,2346.7,2346.6,1.88493]
[1726218525066,22.25641,2346.7,2346.6,1.88493]
[1726218530461,21.88521,2346.7,2346.6,1.88493]
[1726218531765,24.67443397,2346.7,2346.6,7.21184]
[1726218532070,24.67452309,2346.7,2346.6,7.21184]
[1726218533268,24.11635861,2346.7,2346.6,7.21184]
[1726218533470,24.11635861,2346.7,2346.6,6.14653]
[1726218533668,24.11635861,2346.7,2346.6,7.21184]
[1726218533669,21.88521,2346.7,2346.6,7.21184]
[1726218534071,21.88521,2346.7,2346.6,6.14653]
[1726218534380,21.88521,2346.7,2346.6,7.21184]
[1726218534572,24.11580147,2346.7,2346.6,7.21184]
[1726218537576,21.88521,2346.7,2346.6,7.21184]
[1726218537778,23.5574874,2346.7,2346.6,7.21184]
[1726218537969,21.88521,2346.7,2346.6,7.21184]
[1726218539378,23.55722002,2346.7,2346.6,7.21184]
[1726218540276,21.88521,2346.7,2346.6,6.14653]
[1726218540475,24.11580147,2346.7,2346.6,6.14653]
[1726218541071,21.88521,2346.7,2346.6,7.21184]
[1726218541677,21.88521,2346.7,2346.6,13.21184]
[1726218541884,21.88521,2346.7,2346.6,7.21184]
[1726218542181,21.88521,2346.7,2346.6,6.14653]
[1726218542373,24.11580147,2346.7,2346.6,6.14653]
[1726218542569,24.11580147,2346.7,2346.6,7.67653]
[1726218544680,24.11580147,2346.7,2346.6,3.02143]
[1726218544883,24.48910147,2346.7,2346.6,3.02143]
[1726218545085,24.48910147,2346.7,2346.6,1.95612]
[1726218545286,22.25851,2346.7,2346.6,1.95612]
[1726218546483,22.25851,2346.7,2346.6,0.42612]
[1726218548481,24.48720654,2346.7,2346.6,0.42612]
[1726218555292,24.48720654,2346.7,2346.6,1.49143]
[1726218556191,22.25851,2346.7,2346.6,1.49143]
[1726218560394,25.04782309,2346.7,2346.6,1.49143]
[1726218561194,25.47392309,2346.7,2346.6,0.42612]
[1726218561399,26.53919309,2346.7,2346.6,0.42612]
[1726218562287,25.47392309,2346.7,2346.6,0.42612]
[1726218563594,22.68461,2346.7,2346.6,0.42612]
[1726218564903,22.25851,2346.7,2346.6,0.42612]
[1726218565098,22.25851,2346.7,2346.6,1.95612]
[1726218565499,22.25851,2346.7,2346.6,3.02143]
[1726218565698,25.04653776,2346.7,2346.6,3.42953]
[1726218566400,22.25851,2346.7,2346.6,3.42953]
[1726218566699,25.04694243,2346.7,2346.6,3.42953]
[1726218567202,22.25851,2346.7,2346.6,3.42953]
[1726218570390,22.25851,2346.7,2346.6,1.95612]
[1726218571202,22.25851,2346.7,2346.6,3.02143]
[1726218572899,21.88521,2346.7,2346.6,14.34834]
[1726218573102,24.11687594,2346.7,2346.6,8.73654]
[1726218573406,24.11687904,2346.7,2346.6,8.73654]
[1726218574404,21.88521,2346.7,2346.6,8.73654]
[1726218574603,24.1168345,2346.7,2346.6,8.73654]
[1726218576605,24.11684717,2346.7,2346.6,8.73654]
[1726218577707,21.88521,2346.7,2346.6,8.73654]
[1726218578303,21.88521,2346.7,2346.6,11.94434]
[1726218578996,21.88521,2346.7,2346.6,8.73654]
[1726218579198,21.50644876,2346.7,2346.6,21.81019337]
[1726218579501,21.50644876,2346.7,2346.6,23.48928998]
[1726218579807,21.50644876,2346.7,2346.6,23.70639493]
[1726218580903,21.50644876,2346.7,2346.6,23.25550151]
[1726218581110,21.50644876,2346.7,2346.6,23.70637104]
[1726218581607,19.83270999,2346.7,2346.6,23.70637104]
[1726218581800,21.50644876,2346.7,2346.6,23.70637104]
[1726218582304,20.94809377,2346.7,2346.6,23.70637104]
[1726218583105,20.94809377,2346.7,2346.6,23.14455019]
[1726218583310,20.94809377,2346.7,2346.6,23.70637104]
[1726218584107,20.94809377,2346.7,2346.6,23.14444067]
[1726218584309,20.94809377,2346.7,2346.6,22.69357114]
[1726218584704,20.94809377,2346.7,2346.6,23.70636937]
[1726218585010,20.94809377,2346.7,2346.6,23.70543027]
[1726218585213,20.94809377,2346.7,2346.6,23.47002357]
[1726218585596,20.94809377,2346.7,2346.6,24.03205708]
[1726218585800,4.91974452,2346.7,2346.6,29.28874391]
[1726218586005,1.44315452,2346.7,2346.6,27.04994843]
[1726218586201,4.52e-06,2346.7,2346.6,29.28321616]
[1726218587110,4.52e-06,2346.7,2346.6,29.28264014]
[1726218587413,4.52e-06,2346.7,2346.6,29.28036845]
[1726218588006,4.52e-06,2346.7,2346.6,28.82950059]
[1726218588207,4.52e-06,2346.7,2346.6,26.59680888]
[1726218588611,4.52e-06,2346.7,2346.6,29.84613151]
[1726218588912,1.31438378,2347.1,2347.0,2.55631]
[1726218589113,1.67373877,2347.2,2347.1,2.55621]
[1726218589114,1.11538378,2347.2,2347.1,2.55621]
[1726218589414,1.11538378,2347.2,2347.1,6.81701]
[1726218591710,1.50608378,2347.3,2347.1,6.81701]
[1726218592011,1.50608378,2347.3,2347.2,4.08609]
[1726218592607,2.06443877,2347.3,2347.2,4.08609]
[1726218593113,1.50415607,2347.3,2347.2,4.08609]
[1726218599514,0.3907,2347.3,2347.2,4.08609]
[1726218601416,0.42604,2347.1,2346.6,3.00726093]
[1726218601715,0.7672,2347.0,2346.9,0.42607]
[1726218601916,0.7672,2347.0,2346.9,3.02125]
[1726218605316,0.7672,2347.0,2346.9,1.49125]
[1726218605620,0.7672,2347.0,2346.9,3.02125]
[1726218607225,0.7672,2347.0,2346.9,6.22905]
[1726218608822,1.173,2347.0,2346.9,6.22905]
[1726218609022,1.173,2347.0,2346.9,3.02125]
[1726218609320,1.173,2347.0,2346.9,6.22905]
[1726218609515,1.173,2347.0,2346.9,11.55503]
[1726218609716,1.173,2347.0,2346.9,17.55503]
[1726218609717,0.7973,2347.0,2346.9,17.55503]
[1726218611526,0.7973,2347.0,2346.9,19.68539]
[1726218611725,0.7973,2347.0,2346.9,17.55503]
[1726218612130,0.4058,2347.0,2346.9,17.55503]
[1726218612324,0.4058,2347.0,2346.9,19.68539]
[1726218612719,0.3989,2347.2,2347.1,2.55621]
[1726218613030,0.3989,2347.2,2347.1,4.08621]
[1726218614828,0.3989,2347.2,2347.1,7.29401]
[1726218617128,1.51162533,2347.2,2347.1,7.29401]
[1726218617429,0.3989,2347.2,2347.1,7.29401]
[1726218618134,1.51162533,2347.2,2347.1,7.29401]
[1726218618333,1.11272533,2347.3,2347.2,2.55609]
[1726218618630,1.89872533,2347.4,2347.3,2.556]
[1726218618832,1.89872533,2347.4,2347.3,8.346]
[1726218619333,1.89872533,2347.4,2347.3,8.7426]
[1726218621436,1.89872533,2347.4,2347.3,4.4826]
[1726218622728,1.89872533,2347.4,2347.3,8.7426]
[1726218622729,0.786,2347.4,2347.3,8.7426]
[1726218622934,0.4075,2347.4,2347.3,8.7426]
[1726218623126,1.50542533,2347.5,2347.4,2.55588]
[1726218623432,1.50542533,2347.5,2347.4,5.76368]
[1726218624031,1.11272533,2347.5,2347.4,5.76368]
[1726218626337,1.91422533,2347.6,2347.5,2.55576]
[1726218626539,1.91422533,2347.6,2347.5,4.08576]
[1726218627431,1.51332533,2347.6,2347.5,6.21557]
[1726218627734,0.4006,2347.6,2347.5,7.33163239]
[1726218628740,0.90272533,2347.8,2347.7,4.68517]
[1726218628940,0.23,2348.3,2348.0,1.49055]
[1726218628941,1.87273877,2348.1,2348.0,1.49055]
[1726218629241,1.67373877,2348.1,2348.0,6.22835]
[1726218629536,1.1957,2348.2,2348.1,1.49048]
[1726218630236,2.86943877,2348.2,2348.1,0.42585]
[1726218630438,5.4541,2348.2,2348.1,0.42585]
[1726218630733,7.68570833,2348.2,2348.1,0.42585]
[1726218630933,8.23895276,2348.2,2348.1,0.42585]
[1726218631239,8.23920517,2348.2,2348.1,0.42585]
[1726218632036,3.98080517,2348.2,2348.1,0.42585]
[1726218632228,8.23920517,2348.2,2348.1,0.42585]
[1726218633440,3.98080517,2348.2,2348.1,0.42585]
[1726218634239,1.1957,2348.2,2348.1,1.49048]
[1726218634440,2.8656232,2348.2,2348.1,1.49048]
[1726218634634,3.42208059,2348.2,2348.1,1.49048]
[1726218634829,2.86570599,2348.2,2348.1,1.49048]
[1726218635039,1.1957,2348.2,2348.1,0.42585]
[1726218635234,2.86574989,2348.2,2348.1,1.49048]
[1726218636536,2.86574989,2348.2,2348.1,1.87238]
[1726218636839,2.86574989,2348.2,2348.1,0.42585]
[1726218637136,1.1957,2348.2,2348.1,1.95585]
[1726218637935,1.1957,2348.2,2348.1,3.02048]
[1726218641535,1.1957,2348.2,2348.1,1.95585]
[1726218643834,1.1957,2348.2,2348.1,3.02048]
[1726218645645,1.1957,2348.2,2348.1,6.22828]
[1726218645839,1.1957,2348.2,2348.1,6.63068]
[1726218646047,1.1957,2348.2,2348.1,7.69531]
[1726218653151,2.86475196,2348.2,2348.1,7.69531]
[1726218656353,1.1957,2348.2,2348.1,7.69531]
[1726218656650,2.86515812,2348.2,2348.1,7.69531]
[1726218657641,1.1957,2348.2,2348.1,7.69531]
[1726218658744,3.42208059,2348.2,2348.1,7.69531]
[1726218660052,3.42208059,2348.2,2348.1,4.48751]
[1726218660354,3.42208059,2348.2,2348.1,7.69531]
[1726218661056,1.1957,2348.2,2348.1,7.69531]
[1726218668256,3.98080517,2348.2,2348.1,7.69531]
[1726218668664,3.98080517,2348.2,2348.1,3.42288]
[1726218668860,3.98080517,2348.2,2348.1,6.22828]
[1726218669658,3.98080517,2348.2,2348.1,3.02048]
[1726218670158,3.98080517,2348.2,2348.1,1.95585]
[1726218670463,1.1957,2348.2,2348.1,1.95585]
[1726218671259,1.1957,2348.2,2348.1,5.16365]
[1726218671456,1.1957,2348.2,2348.1,1.95585]
[1726218671860,1.1957,2348.2,2348.1,5.16365]
[1726218672058,1.1957,2348.2,2348.1,1.95585]
[1726218673063,8.80233022,2348.2,2348.0,1.53]
[1726218673263,8.80233022,2348.2,2348.1,1.95585]
[1726218673460,9.35281984,2348.2,2348.1,1.95585]
[1726218674465,8.80289595,2348.2,2348.1,1.95585]
[1726218675466,4.54449595,2348.2,2348.1,3.02048]
[1726218675768,4.54449595,2348.2,2348.1,3.42448]
[1726218676066,3.42821478,2348.2,2348.1,3.42448]
[1726218676456,3.42821478,2348.2,2348.1,2.35985]
[1726218676863,1.1957,2348.2,2348.1,1.95585]
[1726218677763,3.98634348,2348.2,2348.1,1.95585]
[1726218679067,3.98634348,2348.2,2348.1,3.02048]
[1726218680360,3.98634348,2348.2,2348.1,1.49048]
[1726218680564,3.98634348,2348.2,2348.1,3.02048]
[1726218683061,3.42824305,2348.2,2348.1,3.02048]
[1726218683262,4.54449595,2348.2,2348.1,3.02048]
[1726218684073,1.1957,2348.2,2348.1,1.95585]
[1726218684259,5.09441984,2348.2,2348.1,1.95585]
[1726218684465,5.09441984,2348.2,2348.1,3.02048]
[1726218687872,1.1957,2348.2,2348.1,3.02048]
[1726218692782,1.1957,2348.2,2348.1,1.95585]
[1726218693789,1.1957,2348.2,2348.1,3.02048]
[1726218694788,0.7938,2348.2,2348.1,3.02048]
[1726218695789,0.7938,2348.2,2348.1,1.95585]
[1726218697285,0.7938,2348.2,2348.1,3.02048]
[1726218702002,0.41,2348.2,2348.1,3.02048]
[1726218702689,3.20082834,2348.2,2348.1,3.02048]
[1726218705193,0.41,2348.2,2348.1,3.02048]
[1726218705405,4.30871984,2348.2,2348.1,3.02048]
[1726218705989,4.30871984,2348.2,2348.1,1.95585]
[1726218707103,4.30871984,2348.2,2348.1,3.02048]
[1726218713321,7.10162202,2348.2,2348.1,3.02048]
[1726218713504,3.20290218,2348.2,2348.1,3.02048]
[1726218715605,0.41,2348.2,2348.1,3.02048]
[1726218716202,3.20279809,2348.2,2348.1,3.02048]
[1726218716808,0.41,2348.2,2348.1,3.02048]
[1726218717011,3.20296951,2348.2,2348.1,3.02048]
[1726218717509,0.41,2348.2,2348.1,3.02048]
[1726218718310,3.20316373,2348.2,2348.1,3.02048]
[1726218718714,0.41,2348.2,2348.1,3.02048]
[1726218719810,0.41,2348.2,2348.1,3.02048]
[1726218721104,4.32100273,2348.2,2348.1,3.02048]
[1726218721305,0.41,2348.2,2348.1,3.02048]
[1726218721709,4.86567982,2348.2,2348.1,3.02048]
[1726218722613,0.41,2348.2,2348.1,3.02048]
[1726218723111,4.32115816,2348.2,2348.1,3.02048]
[1726218725816,4.32115816,2348.2,2348.1,3.47118687]
[1726218726113,3.91115816,2348.3,2348.2,1.49042]
[1726218726316,3.91115816,2348.3,2348.2,6.13511]
[1726218726524,3.91115816,2348.4,2348.3,0.42581]
[1726218726715,3.91115816,2348.4,2348.3,1.95581]
[1726218728414,2.79328888,2348.4,2348.3,1.95581]
[1726218729313,2.79328888,2348.4,2348.3,3.02035]
[1726218729515,2.79328888,2348.4,2348.3,1.95581]
[1726218730225,2.79328888,2348.4,2348.3,3.02035]
[1726218730622,4.3556,2348.6,2348.4,0.4258]
[1726218730623,2.79328888,2348.5,2348.4,0.4258]
[1726218730817,2.79328888,2348.5,2348.4,2.3293]
[1726218733119,2.79328888,2348.5,2348.4,3.3938]
[1726218735824,2.79328888,2348.5,2348.4,2.3293]
[1726218736022,2.79328888,2348.5,2348.4,1.9558]
[1726218736223,3.20238888,2348.5,2348.4,1.9558]
[1726218738037,3.20080578,2348.5,2348.4,1.9558]
[1726218738232,3.20078378,2348.5,2348.4,1.9558]
[1726218738529,0.4091,2348.5,2348.4,1.9558]
[1726218742832,3.20073012,2348.5,2348.4,1.9558]
[1726218743331,3.20069586,2348.5,2348.4,1.9558]
[1726218743530,4.32025816,2348.5,2348.4,1.9558]
[1726218744730,4.74603816,2348.5,2348.4,0.4258]
[1726218744932,4.32025816,2348.5,2348.4,0.4258]
[1726218745132,4.32025816,2348.5,2348.4,1.9558]
[1726218747525,0.4091,2348.5,2348.4,1.9558]
[1726218747723,4.3156323,2348.5,2348.4,1.9558]
[1726218747933,0.4091,2348.5,2348.4,1.9558]
[1726218748134,4.31580071,2348.5,2348.4,1.9558]
[1726218748530,4.74158071,2348.5,2348.4,1.9558]
[1726218748830,4.31580071,2348.5,2348.4,1.9558]
[1726218750531,3.19968744,2348.5,2348.4,1.9558]
[1726218752139,0.4091,2348.5,2348.4,0.4258]
[1726218752445,0.4091,2348.5,2348.4,1.9558]
[1726218752629,3.19982875,2348.5,2348.4,1.9558]
[1726218753031,0.4091,2348.5,2348.4,1.9558]
[1726218758043,0.4091,2348.5,2348.4,3.0203]
[1726218758737,4.86477982,2348.5,2348.4,3.0203]
[1726218758938,9.00886962,2348.5,2348.4,3.0203]
[1726218759839,4.86477982,2348.5,2348.4,3.0203]
[1726218762441,4.86477982,2348.5,2348.4,1.9558]
[1726218762742,4.87526863,2348.5,2348.4,3.0203]
[1726218762946,9.01986851,2348.5,2348.4,3.0203]
[1726218763438,4.55369988,2348.5,2348.4,3.0203]
[1726218765445,4.87591596,2348.5,2348.4,3.0203]
[1726218765746,0.4091,2348.5,2348.4,3.0203]
[1726218773848,5.43763565,2348.5,2348.4,3.0203]
[1726218774644,9.58559583,2348.5,2348.4,3.0203]
[1726218776148,9.58559583,2348.5,2348.4,1.9558]
[1726218777451,9.58559583,2348.5,2348.4,3.0203]
[1726218777649,9.58559583,2348.5,2348.4,1.9558]
[1726218777650,5.43763565,2348.5,2348.4,1.9558]
[1726218778144,9.58559583,2348.5,2348.4,1.9558]
[1726218778353,9.17649583,2348.5,2348.4,1.9558]
[1726218778543,5.02853565,2348.5,2348.4,1.9558]